[Event "Titled Tuesday Blitz August 08 Late 2023"]
[White "Cagara, Paulina"]
[Black "Bogaudinov, Rushan"]
[WhiteFideId "1124870"]
[BlackFideId "4129288"]
[WhiteElo "2275"]
[BlackElo "2418"]
[Result "1-0"]
[Round "9"]
[TimeControl "180+1"]
[Date "2023.08.08"]
[WhiteClock "0:00:56"]
[BlackClock "0:00:00"]
[Board "92"]

1. e4 {[%clk 0:03:00]}  a6 {[%clk 0:02:29]} 2. d4 {[%clk 0:02:54]}  b5 {[%clk 0:02:28]} 3. c4 {[%clk 0:02:53]}  Bb7 {[%clk 0:02:23]} 4. Qc2 {[%clk 0:02:51]}  Nf6 {[%clk 0:02:15]} 5. Nd2 {[%clk 0:02:50]}  b4 {[%clk 0:02:06]} 6. Ngf3 {[%clk 0:02:46]}  e6 {[%clk 0:02:06]} 7. e5 {[%clk 0:02:45]}  Ng8 {[%clk 0:02:06]} 8. Ne4 {[%clk 0:02:34]}  Ne7 {[%clk 0:01:44]} 9. Bg5 {[%clk 0:02:30]}  Qc8 {[%clk 0:01:43]} 10. Bd3 {[%clk 0:02:24]}  Ng6 {[%clk 0:01:36]} 11. h4 {[%clk 0:02:18]}  Nc6 {[%clk 0:01:24]} 12. h5 {[%clk 0:02:13]}  Nxd4 {[%clk 0:01:22]} 13. Nxd4 {[%clk 0:02:12]}  Nxe5 {[%clk 0:01:22]} 14. h6 {[%clk 0:01:44]}  f5 {[%clk 0:01:09]} 15. hxg7 {[%clk 0:01:42]}  Bxg7 {[%clk 0:00:54]} 16. Nf6+ {[%clk 0:01:41]}  Kf7 {[%clk 0:00:54]} 17. Nd5 {[%clk 0:01:23]}  exd5 {[%clk 0:00:36]} 18. Bxf5 {[%clk 0:01:23]}  dxc4 {[%clk 0:00:29]} 19. Be4 {[%clk 0:01:10]}  Bxe4 {[%clk 0:00:16]} 20. Qxe4 {[%clk 0:01:09]}  Ng6 {[%clk 0:00:14]} 21. Qd5+ {[%clk 0:01:06]}  Ke8 {[%clk 0:00:13]} 22. O-O-O {[%clk 0:01:04]}  Be5 {[%clk 0:00:12]} 23. Rde1 {[%clk 0:01:02]}  d6 {[%clk 0:00:12]} 24. f4 {[%clk 0:01:01]}  Kd7 {[%clk 0:00:09]} 25. fxe5 {[%clk 0:01:00]}  Qe8 {[%clk 0:00:08]} 26. Qc6+ {[%clk 0:00:58]}  Kc8 {[%clk 0:00:07]} 27. Qxa8+ {[%clk 0:00:57]}  Kd7 {[%clk 0:00:08]} 28. Qc6+ {[%clk 0:00:57]}  Kc8 {[%clk 0:00:08]} 29. Qxa6+ {[%clk 0:00:57]}  Kb8 {[%clk 0:00:00]} 30. Nc6+ {[%clk 0:00:56]} 1-0


[Site "https://www.chess.com"]

[Event "Titled Tuesday Blitz August 08 Late 2023"]
[White "Luczak, Filip"]
[Black "Fernandez Madrid, Carlos"]
[WhiteFideId "1193686"]
[BlackFideId "2206030"]
[WhiteElo "2414"]
[BlackElo "2274"]
[Result "1-0"]
[Round "9"]
[TimeControl "180+1"]
[Date "2023.08.08"]
[WhiteClock "0:02:29"]
[BlackClock "0:01:57"]
[Board "93"]

1. Nf3 {[%clk 0:03:00]}  b6 {[%clk 0:02:58]} 2. e4 {[%clk 0:02:54]}  Bb7 {[%clk 0:02:58]} 3. Nc3 {[%clk 0:02:54]}  e6 {[%clk 0:02:58]} 4. d4 {[%clk 0:02:53]}  Bb4 {[%clk 0:02:57]} 5. Bd3 {[%clk 0:02:54]}  Bxc3+ {[%clk 0:02:57]} 6. bxc3 {[%clk 0:02:54]}  Nf6 {[%clk 0:02:57]} 7. e5 {[%clk 0:02:54]}  Ne4 {[%clk 0:02:56]} 8. O-O {[%clk 0:02:49]}  d5 {[%clk 0:02:52]} 9. exd6 {[%clk 0:02:44]}  cxd6 {[%clk 0:02:50]} 10. Qe1 {[%clk 0:02:41]}  d5 {[%clk 0:02:48]} 11. Ba3 {[%clk 0:02:40]}  Nd7 {[%clk 0:02:42]} 12. Bxe4 {[%clk 0:02:36]}  dxe4 {[%clk 0:02:41]} 13. Nd2 {[%clk 0:02:36]}  f5 {[%clk 0:02:35]} 14. Nc4 {[%clk 0:02:35]}  Qc7 {[%clk 0:02:21]} 15. Nd6+ {[%clk 0:02:34]}  Kd8 {[%clk 0:02:17]} 16. Nf7+ {[%clk 0:02:34]}  Kc8 {[%clk 0:02:17]} 17. Nxh8 {[%clk 0:02:34]}  Nf6 {[%clk 0:02:16]} 18. c4 {[%clk 0:02:31]}  Qxc4 {[%clk 0:02:13]} 19. Nf7 {[%clk 0:02:30]}  Ba6 {[%clk 0:01:57]} 20. Nd6+ {[%clk 0:02:29]} 1-0


[Site "https://www.chess.com"]

[Event "Titled Tuesday Blitz August 08 Late 2023"]
[White "Fernandez Bustamante, Leancy B."]
[Black "Slovineanu, Viacheslav"]
[WhiteFideId "3523870"]
[BlackFideId "13900510"]
[WhiteElo "2210"]
[BlackElo "2396"]
[Result "1-0"]
[Round "9"]
[TimeControl "180+1"]
[Date "2023.08.08"]
[WhiteClock "0:00:20"]
[BlackClock "0:00:35"]
[Board "96"]

1. e4 {[%clk 0:03:00]}  e5 {[%clk 0:02:58]} 2. Nf3 {[%clk 0:03:00]}  f5 {[%clk 0:02:58]} 3. d4 {[%clk 0:02:58]}  fxe4 {[%clk 0:02:57]} 4. Nxe5 {[%clk 0:02:57]}  Nf6 {[%clk 0:02:58]} 5. Bc4 {[%clk 0:02:52]}  d5 {[%clk 0:02:57]} 6. Be2 {[%clk 0:02:48]}  Nbd7 {[%clk 0:02:55]} 7. Bg5 {[%clk 0:02:37]}  Be7 {[%clk 0:02:53]} 8. O-O {[%clk 0:02:16]}  O-O {[%clk 0:02:50]} 9. Nd2 {[%clk 0:02:00]}  Bd6 {[%clk 0:02:44]} 10. f4 {[%clk 0:01:54]}  exf3 {[%clk 0:02:42]} 11. Ndxf3 {[%clk 0:01:52]}  c6 {[%clk 0:02:35]} 12. Bd3 {[%clk 0:01:42]}  Qb6 {[%clk 0:02:21]} 13. Kh1 {[%clk 0:01:09]}  Re8 {[%clk 0:01:55]} 14. Nxd7 {[%clk 0:01:03]}  Bxd7 {[%clk 0:01:47]} 15. Bxf6 {[%clk 0:00:58]}  gxf6 {[%clk 0:01:48]} 16. Qd2 {[%clk 0:00:53]}  Bf8 {[%clk 0:01:32]} 17. Qf4 {[%clk 0:00:49]}  c5 {[%clk 0:01:09]} 18. dxc5 {[%clk 0:00:43]}  Bxc5 {[%clk 0:01:06]} 19. Qh6 {[%clk 0:00:41]}  Re7 {[%clk 0:00:58]} 20. Nh4 {[%clk 0:00:28]}  Rf8 {[%clk 0:00:42]} 21. Rae1 {[%clk 0:00:22]}  Rxe1 {[%clk 0:00:35]} 22. Qxh7# {[%clk 0:00:20]} 1-0


[Site "https://www.chess.com"]

[Event "Titled Tuesday Blitz August 08 Late 2023"]
[White "Butti, Enrique"]
[Black "Gabdushev, Ruslan"]
[WhiteFideId "3700470"]
[BlackFideId "4137833"]
[WhiteElo "2217"]
[BlackElo "2381"]
[Result "0-1"]
[Round "9"]
[TimeControl "180+1"]
[Date "2023.08.08"]
[WhiteClock "0:00:20"]
[BlackClock "0:00:43"]
[Board "97"]

1. d4 {[%clk 0:02:59]}  c6 {[%clk 0:02:59]} 2. c4 {[%clk 0:02:57]}  Qa5+ {[%clk 0:02:58]} 3. Nc3 {[%clk 0:02:55]}  g5 {[%clk 0:02:57]} 4. e4 {[%clk 0:02:50]}  Bg7 {[%clk 0:02:57]} 5. Be3 {[%clk 0:02:49]}  d6 {[%clk 0:02:54]} 6. Qd2 {[%clk 0:02:47]}  g4 {[%clk 0:02:52]} 7. h3 {[%clk 0:02:43]}  h5 {[%clk 0:02:49]} 8. hxg4 {[%clk 0:02:42]}  hxg4 {[%clk 0:02:50]} 9. Rxh8 {[%clk 0:02:40]}  Bxh8 {[%clk 0:02:51]} 10. Nge2 {[%clk 0:02:36]}  Nd7 {[%clk 0:02:49]} 11. Ng3 {[%clk 0:02:33]}  Nf8 {[%clk 0:02:46]} 12. Be2 {[%clk 0:02:23]}  Ng6 {[%clk 0:02:40]} 13. O-O-O {[%clk 0:02:19]}  Bd7 {[%clk 0:02:34]} 14. Rh1 {[%clk 0:02:14]}  O-O-O {[%clk 0:02:30]} 15. Rh7 {[%clk 0:02:06]}  Rf8 {[%clk 0:02:25]} 16. Qd1 {[%clk 0:01:59]}  Nf6 {[%clk 0:02:21]} 17. Rh2 {[%clk 0:01:52]}  b5 {[%clk 0:02:05]} 18. a3 {[%clk 0:01:42]}  Bg7 {[%clk 0:01:50]} 19. d5 {[%clk 0:01:38]}  b4 {[%clk 0:01:43]} 20. axb4 {[%clk 0:01:34]}  Qxb4 {[%clk 0:01:43]} 21. dxc6 {[%clk 0:01:28]}  Bxc6 {[%clk 0:01:40]} 22. f3 {[%clk 0:01:28]}  gxf3 {[%clk 0:01:34]} 23. gxf3 {[%clk 0:01:27]}  Ne5 {[%clk 0:01:32]} 24. Qf1 {[%clk 0:01:21]}  e6 {[%clk 0:01:29]} 25. Bxa7 {[%clk 0:01:17]}  Kb7 {[%clk 0:01:26]} 26. Be3 {[%clk 0:01:15]}  Ra8 {[%clk 0:01:26]} 27. Kc2 {[%clk 0:01:14]}  Nfd7 {[%clk 0:01:20]} 28. f4 {[%clk 0:01:07]}  Ng4 {[%clk 0:01:09]} 29. Bxg4 {[%clk 0:00:55]}  Bxc3 {[%clk 0:01:03]} 30. bxc3 {[%clk 0:00:55]}  Qa4+ {[%clk 0:01:00]} 31. Kd3 {[%clk 0:00:51]}  Bb5 {[%clk 0:00:50]} 32. Qb1 {[%clk 0:00:34]}  Qxc4+ {[%clk 0:00:49]} 33. Kd2 {[%clk 0:00:31]}  Ra2+ {[%clk 0:00:45]} 34. Ke1 {[%clk 0:00:20]}  Rxh2 {[%clk 0:00:43]} 0-1


[Site "https://www.chess.com"]

[Event "Titled Tuesday Blitz August 08 Late 2023"]
[White "kiwibobo"]
[Black "Sabar Ethmane Daouda"]
[BlackFideId "19600097"]
[WhiteElo "2380"]
[BlackElo "2209"]
[Result "1-0"]
[Round "9"]
[TimeControl "180+1"]
[Date "2023.08.08"]
[WhiteClock "0:00:56"]
[BlackClock "0:00:19"]
[Board "98"]

1. e4 {[%clk 0:03:00]}  c5 {[%clk 0:02:55]} 2. Nf3 {[%clk 0:02:59]}  Nc6 {[%clk 0:02:53]} 3. d4 {[%clk 0:03:00]}  cxd4 {[%clk 0:02:53]} 4. Nxd4 {[%clk 0:03:00]}  e5 {[%clk 0:02:54]} 5. Nb5 {[%clk 0:03:00]}  a6 {[%clk 0:02:54]} 6. Nd6+ {[%clk 0:02:58]}  Bxd6 {[%clk 0:02:54]} 7. Qxd6 {[%clk 0:02:58]}  Qf6 {[%clk 0:02:55]} 8. Qxf6 {[%clk 0:02:58]}  Nxf6 {[%clk 0:02:56]} 9. Nc3 {[%clk 0:02:58]}  d5 {[%clk 0:02:55]} 10. exd5 {[%clk 0:02:57]}  Nb4 {[%clk 0:02:55]} 11. Bd3 {[%clk 0:02:58]}  b5 {[%clk 0:02:39]} 12. O-O {[%clk 0:02:52]}  Nxd3 {[%clk 0:02:38]} 13. cxd3 {[%clk 0:02:49]}  b4 {[%clk 0:02:37]} 14. Ne4 {[%clk 0:02:46]}  Nxd5 {[%clk 0:02:37]} 15. Be3 {[%clk 0:02:31]}  O-O {[%clk 0:02:24]} 16. Bc5 {[%clk 0:02:30]}  Rd8 {[%clk 0:02:21]} 17. g3 {[%clk 0:02:24]}  a5 {[%clk 0:02:19]} 18. Rac1 {[%clk 0:02:21]}  Ba6 {[%clk 0:02:18]} 19. Rfd1 {[%clk 0:02:21]}  f5 {[%clk 0:02:06]} 20. Nd6 {[%clk 0:02:13]}  g6 {[%clk 0:02:01]} 21. Nc4 {[%clk 0:02:07]}  Re8 {[%clk 0:01:50]} 22. Nxa5 {[%clk 0:02:02]}  f4 {[%clk 0:01:40]} 23. Nc4 {[%clk 0:01:48]}  fxg3 {[%clk 0:01:36]} 24. hxg3 {[%clk 0:01:48]}  Re6 {[%clk 0:01:05]} 25. d4 {[%clk 0:01:32]}  e4 {[%clk 0:01:02]} 26. Ne3 {[%clk 0:01:29]}  Nxe3 {[%clk 0:00:52]} 27. fxe3 {[%clk 0:01:29]}  Bd3 {[%clk 0:00:48]} 28. Bxb4 {[%clk 0:01:20]}  Rxa2 {[%clk 0:00:46]} 29. d5 {[%clk 0:01:16]}  Re8 {[%clk 0:00:28]} 30. d6 {[%clk 0:01:14]}  Raa8 {[%clk 0:00:24]} 31. d7 {[%clk 0:01:08]}  Reb8 {[%clk 0:00:23]} 32. Be7 {[%clk 0:01:06]}  Kf7 {[%clk 0:00:20]} 33. d8=Q {[%clk 0:01:03]}  Rxd8 {[%clk 0:00:20]} 34. Bxd8 {[%clk 0:01:04]}  Rxd8 {[%clk 0:00:21]} 35. Rc7+ {[%clk 0:01:04]}  Kf6 {[%clk 0:00:20]} 36. Rxh7 {[%clk 0:01:02]}  Rb8 {[%clk 0:00:20]} 37. Rd2 {[%clk 0:01:01]}  Ra8 {[%clk 0:00:20]} 38. Rb7 {[%clk 0:00:57]}  Ra1+ {[%clk 0:00:20]} 39. Kf2 {[%clk 0:00:57]}  Rf1+ {[%clk 0:00:19]} 40. Kg2 {[%clk 0:00:58]}  Rf3 {[%clk 0:00:20]} 41. Rxd3 {[%clk 0:00:56]}  exd3 {[%clk 0:00:21]} 42. Kxf3 {[%clk 0:00:56]}  d2 {[%clk 0:00:19]} 43. Rd7 {[%clk 0:00:56]} 1-0


[Site "https://www.chess.com"]

[Event "Titled Tuesday Blitz August 08 Late 2023"]
[White "dorpato"]
[Black "Lopez Gracia, Fernando"]
[BlackFideId "2207184"]
[WhiteElo "2077"]
[BlackElo "2339"]
[Result "0-1"]
[Round "9"]
[TimeControl "180+1"]
[Date "2023.08.08"]
[WhiteClock "0:00:14"]
[BlackClock "0:02:04"]
[Board "102"]

1. e4 {[%clk 0:03:00]}  c5 {[%clk 0:02:59]} 2. Nc3 {[%clk 0:02:50]}  e6 {[%clk 0:03:00]} 3. g3 {[%clk 0:02:49]}  Nc6 {[%clk 0:02:57]} 4. Bg2 {[%clk 0:02:44]}  g6 {[%clk 0:02:55]} 5. d3 {[%clk 0:02:31]}  Bg7 {[%clk 0:02:50]} 6. Be3 {[%clk 0:02:26]}  b6 {[%clk 0:02:48]} 7. Qd2 {[%clk 0:02:03]}  Nge7 {[%clk 0:02:47]} 8. h3 {[%clk 0:01:55]}  O-O {[%clk 0:02:45]} 9. f4 {[%clk 0:01:43]}  d5 {[%clk 0:02:44]} 10. Nce2 {[%clk 0:01:24]}  Bxb2 {[%clk 0:02:36]} 11. Rb1 {[%clk 0:01:14]}  Bg7 {[%clk 0:02:36]} 12. Nf3 {[%clk 0:01:09]}  dxe4 {[%clk 0:02:29]} 13. dxe4 {[%clk 0:00:52]}  Qxd2+ {[%clk 0:02:30]} 14. Bxd2 {[%clk 0:00:52]}  Ba6 {[%clk 0:02:30]} 15. e5 {[%clk 0:00:46]}  Rfd8 {[%clk 0:02:25]} 16. Be3 {[%clk 0:00:35]}  Nf5 {[%clk 0:02:21]} 17. Bf2 {[%clk 0:00:30]}  Rac8 {[%clk 0:02:18]} 18. g4 {[%clk 0:00:27]}  Bxe2 {[%clk 0:02:15]} 19. Kxe2 {[%clk 0:00:23]}  Nfd4+ {[%clk 0:02:15]} 20. Nxd4 {[%clk 0:00:23]}  Nxd4+ {[%clk 0:02:16]} 21. Bxd4 {[%clk 0:00:22]}  cxd4 {[%clk 0:02:17]} 22. Kd3 {[%clk 0:00:20]}  Rc3+ {[%clk 0:02:16]} 23. Kd2 {[%clk 0:00:20]}  Rdc8 {[%clk 0:02:11]} 24. Rhc1 {[%clk 0:00:20]}  Bf8 {[%clk 0:02:11]} 25. Rb3 {[%clk 0:00:18]}  Ba3 {[%clk 0:02:07]} 26. Rxc3 {[%clk 0:00:16]}  dxc3+ {[%clk 0:02:07]} 27. Kd1 {[%clk 0:00:16]}  Rd8+ {[%clk 0:02:06]} 28. Ke2 {[%clk 0:00:14]}  Rd2+ {[%clk 0:02:04]} 0-1


[Site "https://www.chess.com"]

[Event "Titled Tuesday Blitz August 08 Late 2023"]
[White "Mickiewicz, Piotr"]
[Black "Maluco_do_Natal_00"]
[WhiteFideId "1114891"]
[WhiteElo "2469"]
[BlackElo "2103"]
[Result "1-0"]
[Round "9"]
[TimeControl "180+1"]
[Date "2023.08.08"]
[WhiteClock "0:01:44"]
[BlackClock "0:00:37"]
[Board "103"]

1. Nf3 {[%clk 0:03:00]}  d5 {[%clk 0:02:55]} 2. g3 {[%clk 0:03:01]}  c5 {[%clk 0:02:55]} 3. Bg2 {[%clk 0:03:02]}  Nf6 {[%clk 0:02:55]} 4. O-O {[%clk 0:03:02]}  Nc6 {[%clk 0:02:55]} 5. b3 {[%clk 0:03:03]}  e5 {[%clk 0:02:55]} 6. Bb2 {[%clk 0:03:02]}  Bd6 {[%clk 0:02:55]} 7. e3 {[%clk 0:02:58]}  e4 {[%clk 0:02:51]} 8. Ne1 {[%clk 0:02:57]}  Bg4 {[%clk 0:02:50]} 9. f3 {[%clk 0:02:56]}  exf3 {[%clk 0:02:49]} 10. Nxf3 {[%clk 0:02:56]}  Be5 {[%clk 0:02:43]} 11. Nc3 {[%clk 0:02:39]}  d4 {[%clk 0:02:29]} 12. exd4 {[%clk 0:02:32]}  cxd4 {[%clk 0:02:28]} 13. Qe1 {[%clk 0:02:18]}  Bxf3 {[%clk 0:02:23]} 14. Bxf3 {[%clk 0:02:17]}  dxc3 {[%clk 0:02:14]} 15. Bxc6+ {[%clk 0:02:16]}  bxc6 {[%clk 0:02:10]} 16. Qxe5+ {[%clk 0:02:15]}  Qe7 {[%clk 0:02:07]} 17. Bxc3 {[%clk 0:02:14]}  Qxe5 {[%clk 0:02:05]} 18. Bxe5 {[%clk 0:02:14]}  O-O-O {[%clk 0:01:39]} 19. Bxf6 {[%clk 0:02:11]}  gxf6 {[%clk 0:01:38]} 20. d3 {[%clk 0:02:12]}  Rd6 {[%clk 0:01:35]} 21. Rae1 {[%clk 0:02:12]}  Kd7 {[%clk 0:01:33]} 22. Re4 {[%clk 0:02:11]}  h5 {[%clk 0:01:28]} 23. Rf5 {[%clk 0:02:06]}  Rh6 {[%clk 0:00:58]} 24. Ra4 {[%clk 0:02:01]}  Ke6 {[%clk 0:00:58]} 25. Rff4 {[%clk 0:01:58]}  f5 {[%clk 0:00:52]} 26. Rxa7 {[%clk 0:01:57]}  Rd5 {[%clk 0:00:52]} 27. a4 {[%clk 0:01:50]}  Rc5 {[%clk 0:00:52]} 28. c4 {[%clk 0:01:47]}  h4 {[%clk 0:00:37]} 29. d4 {[%clk 0:01:44]} 1-0


[Site "https://www.chess.com"]

[Event "Titled Tuesday Blitz August 08 Late 2023"]
[White "Liu, Casper"]
[Black "Petersson, Kjell"]
[WhiteFideId "1454153"]
[BlackFideId "1705148"]
[WhiteElo "2445"]
[BlackElo "2191"]
[Result "1-0"]
[Round "9"]
[TimeControl "180+1"]
[Date "2023.08.08"]
[WhiteClock "0:01:41"]
[BlackClock "0:01:53"]
[Board "109"]

1. d4 {[%clk 0:02:56]}  f5 {[%clk 0:03:00]} 2. Bg5 {[%clk 0:02:55]}  h6 {[%clk 0:02:59]} 3. Bh4 {[%clk 0:02:55]}  c5 {[%clk 0:02:59]} 4. e3 {[%clk 0:02:54]}  Qb6 {[%clk 0:02:56]} 5. Nc3 {[%clk 0:02:48]}  cxd4 {[%clk 0:02:54]} 6. exd4 {[%clk 0:02:44]}  g5 {[%clk 0:02:53]} 7. Qh5+ {[%clk 0:02:40]}  Kd8 {[%clk 0:02:53]} 8. Bxg5 {[%clk 0:02:35]}  Qxb2 {[%clk 0:02:52]} 9. Kd2 {[%clk 0:02:19]}  Qxa1 {[%clk 0:02:32]} 10. Qf7 {[%clk 0:02:04]}  hxg5 {[%clk 0:02:10]} 11. Qxf8+ {[%clk 0:02:01]}  Kc7 {[%clk 0:02:11]} 12. Nb5+ {[%clk 0:01:59]}  Kb6 {[%clk 0:02:08]} 13. Qd8+ {[%clk 0:01:59]}  Kc6 {[%clk 0:01:55]} 14. Qxc8+ {[%clk 0:01:51]}  Kd5 {[%clk 0:01:55]} 15. Qc4+ {[%clk 0:01:42]}  Ke4 {[%clk 0:01:54]} 16. f3+ {[%clk 0:01:41]}  Kf4 {[%clk 0:01:53]} 17. g3# {[%clk 0:01:41]} 1-0


[Site "https://www.chess.com"]

[Event "Titled Tuesday Blitz August 08 Late 2023"]
[White "Beulen, Marcel"]
[Black "Powell, Paul"]
[WhiteFideId "1001450"]
[BlackFideId "2005840"]
[WhiteElo "2317"]
[BlackElo "2181"]
[Result "1-0"]
[Round "9"]
[TimeControl "180+1"]
[Date "2023.08.08"]
[WhiteClock "0:01:08"]
[BlackClock "0:00:00"]
[Board "110"]

1. e4 {[%clk 0:03:00]}  c5 {[%clk 0:02:59]} 2. Nf3 {[%clk 0:03:00]}  d6 {[%clk 0:02:59]} 3. Bb5+ {[%clk 0:02:59]}  Bd7 {[%clk 0:02:58]} 4. Bxd7+ {[%clk 0:02:58]}  Nxd7 {[%clk 0:02:52]} 5. O-O {[%clk 0:02:57]}  Ngf6 {[%clk 0:02:51]} 6. Qe2 {[%clk 0:02:57]}  e6 {[%clk 0:02:47]} 7. c3 {[%clk 0:02:57]}  Be7 {[%clk 0:02:43]} 8. d4 {[%clk 0:02:57]}  O-O {[%clk 0:02:35]} 9. Bg5 {[%clk 0:02:54]}  h6 {[%clk 0:02:34]} 10. Bxf6 {[%clk 0:02:51]}  Bxf6 {[%clk 0:02:29]} 11. dxc5 {[%clk 0:02:46]}  dxc5 {[%clk 0:02:26]} 12. Nbd2 {[%clk 0:02:44]}  Qc7 {[%clk 0:02:24]} 13. Rad1 {[%clk 0:02:41]}  Rfd8 {[%clk 0:02:19]} 14. a4 {[%clk 0:02:37]}  a6 {[%clk 0:02:17]} 15. h3 {[%clk 0:02:32]}  Rab8 {[%clk 0:02:06]} 16. Rfe1 {[%clk 0:02:29]}  Nb6 {[%clk 0:02:00]} 17. a5 {[%clk 0:02:14]}  Na4 {[%clk 0:01:33]} 18. Nc4 {[%clk 0:02:14]}  Rxd1 {[%clk 0:01:22]} 19. Qxd1 {[%clk 0:02:12]}  b5 {[%clk 0:01:14]} 20. axb6 {[%clk 0:02:05]}  Nxb6 {[%clk 0:01:13]} 21. Nfd2 {[%clk 0:01:58]}  Rd8 {[%clk 0:01:06]} 22. Qb3 {[%clk 0:01:49]}  Nxc4 {[%clk 0:00:49]} 23. Nxc4 {[%clk 0:01:50]}  g6 {[%clk 0:00:31]} 24. Qc2 {[%clk 0:01:45]}  Qd7 {[%clk 0:00:25]} 25. Re2 {[%clk 0:01:38]}  Qd1+ {[%clk 0:00:23]} 26. Qxd1 {[%clk 0:01:38]}  Rxd1+ {[%clk 0:00:23]} 27. Kh2 {[%clk 0:01:38]}  Rb1 {[%clk 0:00:23]} 28. f4 {[%clk 0:01:31]}  h5 {[%clk 0:00:14]} 29. g3 {[%clk 0:01:30]}  Ra1 {[%clk 0:00:12]} 30. h4 {[%clk 0:01:29]}  a5 {[%clk 0:00:12]} 31. Kg2 {[%clk 0:01:29]}  a4 {[%clk 0:00:12]} 32. Kf3 {[%clk 0:01:29]}  Rf1+ {[%clk 0:00:11]} 33. Ke3 {[%clk 0:01:27]}  Ra1 {[%clk 0:00:11]} 34. e5 {[%clk 0:01:10]}  Be7 {[%clk 0:00:10]} 35. Rg2 {[%clk 0:01:10]}  Re1+ {[%clk 0:00:08]} 36. Kd3 {[%clk 0:01:10]}  Ra1 {[%clk 0:00:08]} 37. Na3 {[%clk 0:01:08]}  Rd1+ {[%clk 0:00:05]} 38. Kc4 {[%clk 0:01:08]}  Ra1 {[%clk 0:00:00]} 39. Kb5 {[%clk 0:01:08]} 1-0


[Site "https://www.chess.com"]

[Event "Titled Tuesday Blitz August 08 Late 2023"]
[White "Biliy, Vadim"]
[Black "Ortmann, David"]
[WhiteFideId "14114127"]
[BlackFideId "4651588"]
[WhiteElo "2216"]
[BlackElo "2309"]
[Result "0-1"]
[Round "9"]
[TimeControl "180+1"]
[Date "2023.08.08"]
[WhiteClock "0:00:00"]
[BlackClock "0:00:05"]
[Board "111"]

1. d4 {[%clk 0:03:00]}  d5 {[%clk 0:02:58]} 2. Nf3 {[%clk 0:03:00]}  Nf6 {[%clk 0:02:57]} 3. e3 {[%clk 0:03:01]}  Bg4 {[%clk 0:02:57]} 4. c4 {[%clk 0:03:01]}  c6 {[%clk 0:02:57]} 5. Nbd2 {[%clk 0:03:00]}  e6 {[%clk 0:02:55]} 6. Be2 {[%clk 0:03:00]}  Be7 {[%clk 0:02:53]} 7. h3 {[%clk 0:03:00]}  Bh5 {[%clk 0:02:53]} 8. Ne5 {[%clk 0:02:52]}  Bxe2 {[%clk 0:02:52]} 9. Qxe2 {[%clk 0:02:53]}  O-O {[%clk 0:02:52]} 10. O-O {[%clk 0:02:52]}  Nbd7 {[%clk 0:02:52]} 11. Ndf3 {[%clk 0:02:51]}  Nxe5 {[%clk 0:02:48]} 12. Nxe5 {[%clk 0:02:51]}  a5 {[%clk 0:02:49]} 13. Bd2 {[%clk 0:02:44]}  a4 {[%clk 0:02:48]} 14. f3 {[%clk 0:02:34]}  c5 {[%clk 0:02:43]} 15. Bc3 {[%clk 0:02:25]}  dxc4 {[%clk 0:02:37]} 16. Qxc4 {[%clk 0:02:20]}  Nd5 {[%clk 0:02:36]} 17. Rae1 {[%clk 0:02:14]}  a3 {[%clk 0:02:28]} 18. e4 {[%clk 0:02:09]}  Nb6 {[%clk 0:02:05]} 19. Qd3 {[%clk 0:01:57]}  axb2 {[%clk 0:02:01]} 20. dxc5 {[%clk 0:01:27]}  Bxc5+ {[%clk 0:01:57]} 21. Kh1 {[%clk 0:01:28]}  Rxa2 {[%clk 0:01:22]} 22. Qb1 {[%clk 0:01:23]}  Qa8 {[%clk 0:01:14]} 23. Bxb2 {[%clk 0:01:19]}  Qa6 {[%clk 0:00:58]} 24. Rc1 {[%clk 0:00:58]}  Be3 {[%clk 0:00:48]} 25. Rce1 {[%clk 0:00:48]}  Bf4 {[%clk 0:00:33]} 26. Nd3 {[%clk 0:00:44]}  Bg3 {[%clk 0:00:33]} 27. Rd1 {[%clk 0:00:40]}  Ra8 {[%clk 0:00:33]} 28. Nb4 {[%clk 0:00:37]}  Rxb2 {[%clk 0:00:15]} 29. Qxb2 {[%clk 0:00:32]}  Qb5 {[%clk 0:00:16]} 30. Nd3 {[%clk 0:00:28]}  Qxb2 {[%clk 0:00:15]} 31. Nxb2 {[%clk 0:00:28]}  h6 {[%clk 0:00:16]} 32. Rb1 {[%clk 0:00:25]}  Ra2 {[%clk 0:00:15]} 33. Nd3 {[%clk 0:00:23]}  Nc4 {[%clk 0:00:16]} 34. Rxb7 {[%clk 0:00:18]}  Ne3 {[%clk 0:00:16]} 35. Rg1 {[%clk 0:00:17]}  Rd2 {[%clk 0:00:17]} 36. Nc5 {[%clk 0:00:16]}  Bf2 {[%clk 0:00:17]} 37. Rbb1 {[%clk 0:00:11]}  Bxg1 {[%clk 0:00:16]} 38. Rxg1 {[%clk 0:00:11]}  Nc2 {[%clk 0:00:16]} 39. Nb3 {[%clk 0:00:10]}  Re2 {[%clk 0:00:16]} 40. Nc1 {[%clk 0:00:09]}  Rd2 {[%clk 0:00:15]} 41. Nb3 {[%clk 0:00:09]}  Rd3 {[%clk 0:00:14]} 42. Nc1 {[%clk 0:00:08]}  Rc3 {[%clk 0:00:14]} 43. Ne2 {[%clk 0:00:08]}  Rc4 {[%clk 0:00:14]} 44. Nf4 {[%clk 0:00:07]}  Ne3 {[%clk 0:00:12]} 45. Re1 {[%clk 0:00:07]}  Rc3 {[%clk 0:00:07]} 46. Kg1 {[%clk 0:00:06]}  g5 {[%clk 0:00:07]} 47. Nh5 {[%clk 0:00:02]}  Kh7 {[%clk 0:00:06]} 48. Kf2 {[%clk 0:00:00]}  Nc4 {[%clk 0:00:05]} 0-1


[Site "https://www.chess.com"]